bitfinex/quotes_ETHUSD_20260108
["timestamp","ask_amount","ask_price","bid_price","bid_amount"]
[1767874913454,0.87719486,3104.4,3104.0,0.96824807]
[1767874913654,0.845,3104.4,3104.0,0.96824807]
[1767874916758,0.001,3104.3,3104.0,0.96824807]
[1767874926496,3.22019707,3105.4,3104.3,0.90524231]
[1767874926677,3.21998969,3105.6,3104.3,0.90524231]
[1767874926981,0.87719486,3105.5,3104.3,0.90524231]
[1767874927181,0.03219486,3105.5,3104.3,0.90524231]
[1767874927489,0.845,3105.4,3104.3,0.90524231]
[1767874927783,0.03219486,3105.3,3104.5,0.90524231]
[1767874927980,3.25251104,3105.3,3104.5,0.90524231]
[1767874928195,0.845,3105.6,3104.6,0.90524231]
[1767874928562,0.03219486,3105.5,3104.6,0.90524231]
[1767874929289,0.845,3105.6,3104.6,0.90524231]
[1767874929587,0.001,3105.3,3104.8,0.90524231]
[1767874930595,0.001,3105.3,3104.9,0.90524231]
[1767874932874,0.001,3105.3,3105.0,0.90524231]
[1767874934089,0.56695419,3105.3,3103.7,0.90524231]
[1767874934290,0.56695419,3105.3,3103.8,0.90524231]
[1767874934291,0.56595419,3105.1,3103.8,0.90524231]
[1767874934594,0.845,3105.0,3104.1,0.90524231]
[1767874934787,0.56595419,3105.2,3104.1,0.90524231]
[1767874934788,0.845,3104.9,3104.1,0.90524231]
[1767874934970,3.25301423,3104.8,3104.1,0.90524231]
[1767874935170,0.40980142,3104.7,3104.1,0.90524231]
[1767874936472,3.22130133,3105.3,3104.2,0.90524231]
[1767874936672,0.03219486,3105.2,3104.2,0.90524231]
[1767874936981,0.845,3105.1,3104.2,0.90524231]
[1767874937191,0.845,3105.1,3104.4,0.90524231]
[1767874937374,0.03219486,3105.0,3104.4,0.90524231]
[1767874939780,0.44196867,3105.0,3103.8,0.90524231]
[1767874940014,3.66259629,3105.0,3104.2,0.90524231]
[1767874940685,0.44196867,3105.0,3104.2,4.12667176]
[1767874941107,0.44196867,3105.0,3104.3,0.90524231]
[1767874942116,0.40977381,3105.0,3104.4,0.90524231]
[1767874943114,3.22133576,3105.3,3104.6,0.90524231]
[1767874943413,0.845,3105.0,3104.6,0.90524231]
[1767874945210,0.845,3105.0,3103.9,0.90524231]
[1767874945211,0.59814905,3104.9,3103.9,0.90524231]
[1767874945519,0.59814905,3104.9,3103.6,0.90524231]
[1767874945720,0.59814905,3104.9,3103.8,3.22180221]
[1767874945920,1.35440101,3104.8,3103.8,3.22180221]
[1767874946100,0.03219486,3104.7,3103.8,4.12704452]
[1767874946309,0.03219486,3104.7,3103.9,3.22174885]
[1767874947120,3.2531301,3104.7,3103.8,4.12704435]
[1767874948826,0.03219486,3104.7,3103.8,4.12704435]
[1767874949236,3.25316393,3104.7,3103.9,0.90524231]
[1767874949707,6.474133,3104.7,3103.9,0.90524231]
[1767874949906,6.44193814,3104.7,3103.9,0.90524231]
[1767874950107,0.03219486,3104.6,3103.9,0.90524231]
[1767874950319,1.4924133,3104.5,3103.9,0.90524231]
[1767874950718,1.4924133,3104.5,3103.2,0.0322248]
[1767874950719,0.56595419,3104.2,3103.3,0.90524231]
[1767874951037,0.78844682,3104.8,3103.6,0.90524231]
[1767874951198,0.845,3104.7,3103.6,0.90524231]
[1767874951399,0.03219486,3104.6,3103.6,0.90524231]
[1767874951901,0.59814905,3104.6,3103.6,0.90524231]
[1767874952602,3.22113061,3104.5,3103.6,0.90524231]
[1767874952829,0.87719486,3104.4,3103.6,0.90524231]
[1767874953048,0.87719486,3104.4,3103.7,0.92267707]
[1767874953454,0.87719486,3104.4,3104.2,0.002]
[1767874954355,0.56595419,3104.8,3104.2,0.002]
[1767874954356,0.001,3105.3,3104.7,0.92267707]
[1767874954656,0.001,3105.7,3105.1,0.92267707]
[1767874954833,0.845,3105.6,3105.1,0.92267707]
[1767874955035,0.001,3105.7,3105.2,0.92267707]
[1767874955342,0.845,3106.0,3105.4,0.92267707]
[1767874956056,3.21906177,3106.5,3105.4,0.92267707]
[1767874956259,0.845,3106.1,3105.4,0.92267707]
[1767874957331,4.06447154,3106.1,3105.1,1.33700017]
[1767874957538,4.06447154,3106.1,3105.1,0.92267707]
[1767874957730,0.845,3106.1,3105.1,0.92267707]
[1767874958355,0.845,3106.1,3105.3,3.22023212]
[1767874958657,4.06447871,3106.1,3105.2,0.92267707]
[1767874958956,3.78623683,3106.3,3105.3,4.55722255]
[1767874959161,0.845,3106.2,3105.4,0.92267707]
[1767874959530,1.41195419,3106.2,3105.3,0.41431132]
[1767874959841,0.56695419,3106.1,3105.1,0.92267707]
[1767874960041,0.56695419,3106.1,3105.1,4.14313779]
[1767874960255,0.56695419,3106.1,3105.2,3.22036641]
[1767874960453,0.56695419,3106.1,3105.1,0.92267707]
[1767874960667,0.56695419,3106.1,3105.2,3.22031106]
[1767874960856,0.56695419,3106.1,3104.9,0.92267707]
[1767874961051,0.56695419,3105.9,3104.4,0.92267707]
[1767874961373,0.56695419,3105.9,3104.7,3.22090928]
[1767874962077,0.56695419,3105.9,3104.8,3.22079322]
[1767874963580,6.43915002,3106.0,3105.0,0.92267707]
[1767874963581,0.845,3106.0,3105.0,0.92267707]
[1767874963877,0.845,3106.0,3105.2,0.92267707]
[1767874965580,0.845,3106.0,3105.2,4.1430486]
[1767874965876,0.845,3106.0,3105.3,0.92267707]
[1767874966577,0.845,3106.0,3105.5,0.002]
[1767874966777,0.001,3105.8,3105.5,0.002]
[1767874971203,0.9745141,3105.8,3105.1,0.002]
[1767874971500,0.56495419,3105.7,3105.1,0.002]
[1767874971822,0.40755991,3105.8,3105.1,0.002]
[1767874972005,0.001,3105.8,3105.1,0.92467707]
[1767874972365,3.22078838,3105.8,3105.1,0.002]
[1767874972585,0.40657884,3105.7,3105.1,0.002]
[1767874973404,0.845,3105.7,3105.1,0.92467707]
[1767874975004,0.845,3105.7,3105.2,0.92267707]
[1767874976318,0.845,3105.7,3105.2,4.14308073]
[1767874978105,0.001,3105.8,3105.3,0.92267707]
[1767874978807,0.001,3105.8,3105.4,0.002]
[1767874979008,0.001,3105.5,3105.4,0.002]
[1767874985308,0.001,3105.8,3105.4,0.91111825]
[1767874985622,0.001,3105.8,3105.4,1.32427019]
[1767874986910,0.001,3105.8,3105.5,0.90911825]
[1767874987212,0.001,3105.8,3105.6,0.90911825]
[1767874987632,0.001,3105.8,3105.4,0.41515194]
[1767874987959,0.001,3105.8,3105.4,0.002]
[1767874990550,0.001,3105.8,3105.4,0.94332022]
[1767874990772,0.001,3105.8,3105.4,0.91111825]
[1767874990937,0.846,3105.8,3105.4,0.91111825]
[1767874991269,0.001,3105.8,3105.4,0.91111825]
[1767874991572,0.001,3105.8,3105.4,1.32426809]
[1767874991765,0.001,3105.5,3105.4,0.91111825]
[1767874991964,0.001,3105.8,3105.4,0.91111825]
[1767874997550,0.001,3105.8,3105.4,4.13130499]
[1767874997750,0.001,3105.8,3105.5,0.90911825]
[1767874997966,0.001,3105.8,3105.6,0.4131305]
[1767874999660,0.001,3105.8,3105.6,1.32224875]
[1767874999868,0.001,3105.8,3105.6,0.90911825]
[1767875000073,0.56715576,3105.8,3105.1,0.002]
[1767875000279,0.56715576,3105.8,3104.6,4.68911825]
[1767875000584,0.56715576,3105.8,3104.6,0.90911825]
[1767875000788,0.56715576,3105.8,3104.4,4.1303522]
[1767875000950,0.56615576,3105.6,3104.4,4.1303522]
[1767875001655,0.56615576,3105.4,3104.5,0.90911825]
[1767875001872,0.845,3105.3,3104.5,0.90911825]
[1767875002354,1.41115576,3105.3,3104.5,0.90911825]
[1767875002555,0.56615576,3105.2,3104.2,0.002]
[1767875003271,0.845,3105.3,3104.8,0.91111825]
[1767875003478,0.001,3105.8,3105.0,0.90911825]
[1767875003651,3.21946005,3106.2,3105.4,0.90911825]
[1767875003853,3.21930452,3106.3,3105.5,0.90911825]
[1767875004309,3.21930452,3106.3,3105.6,0.90911825]
[1767875004512,4.06430452,3106.3,3105.6,0.90911825]
[1767875005002,0.845,3106.3,3105.6,0.90911825]
[1767875005809,0.56715576,3106.1,3104.9,0.90911825]
[1767875005960,0.56715576,3106.1,3104.8,0.002]
[1767875005961,1.35224488,3106.1,3105.0,0.90911825]
[1767875006158,0.845,3106.1,3105.3,0.90911825]
[1767875006373,0.845,3106.1,3105.3,0.94132125]
[1767875006650,3.21931003,3106.3,3105.4,0.90911825]
[1767875006879,4.06431003,3106.3,3105.5,0.90911825]
[1767875007078,4.06431003,3106.3,3105.5,1.32205947]
[1767875007389,3.21895319,3106.6,3105.6,0.90911825]
[1767875007575,4.06395319,3106.6,3105.6,0.90911825]
[1767875007880,4.06395319,3106.6,3105.7,0.90911825]
[1767875008397,3.21864237,3106.9,3105.7,0.90911825]
[1767875008692,3.21864237,3106.9,3105.9,0.90911825]
[1767875010055,3.21864237,3106.9,3106.0,0.90911825]
[1767875010454,0.56715576,3106.8,3105.8,0.39056384]
[1767875010783,0.56715576,3106.8,3105.4,0.90911825]
[1767875011157,0.56715576,3106.8,3105.1,4.12956656]
[1767875011355,0.56715576,3106.8,3104.8,0.91111825]
[1767875011556,0.56715576,3106.8,3104.8,4.13192605]
[1767875011753,0.56715576,3106.6,3104.8,4.13192605]
[1767875011987,0.56715576,3106.4,3104.8,0.91111825]
[1767875012165,0.56715576,3106.2,3104.8,0.91111825]
[1767875014707,0.56715576,3106.0,3104.8,4.13193253]
[1767875014876,0.845,3105.9,3104.8,4.13193253]
[1767875015079,0.845,3105.9,3104.8,0.91111825]
[1767875015280,0.56715576,3105.8,3104.8,0.002]
[1767875016483,0.845,3105.7,3104.8,0.93814661]
[1767875016879,3.21998969,3105.6,3104.8,0.93814661]
[1767875017079,4.005191,3105.6,3104.8,0.93814661]
[1767875018707,4.005191,3105.6,3104.8,0.002]
[1767875018708,7.79233645,3105.6,3104.8,0.002]
[1767875018910,0.56715576,3105.5,3104.8,0.002]
[1767875019114,1.41215576,3105.5,3104.8,0.002]
[1767875019412,0.845,3105.5,3104.8,0.93814661]
[1767875020022,0.56715576,3105.3,3104.8,0.002]
[1767875020223,0.56715576,3105.3,3104.8,0.001]
[1767875020386,0.56715576,3105.3,3104.5,0.002]
[1767875020932,0.001,3105.9,3104.7,0.93614661]
[1767875021129,3.21899531,3106.6,3105.5,0.93614661]
[1767875021306,3.21905681,3106.5,3105.5,0.93614661]
[1767875021847,0.56715576,3106.4,3104.9,0.03220715]
[1767875022803,3.78641983,3106.3,3104.9,6.44143128]
[1767875023002,0.56715576,3106.2,3104.9,6.44143128]
[1767875025211,0.56715576,3106.2,3105.0,0.93614661]
[1767875026319,0.56715576,3106.1,3105.0,0.93614661]
[1767875027239,0.56715576,3106.1,3105.1,3.22050819]
[1767875027608,0.56715576,3106.1,3105.1,4.1566548]
[1767875028431,0.56715576,3106.1,3105.1,4.1586548]
[1767875028632,0.001,3105.9,3105.1,4.1586548]
[1767875030941,0.56815576,3105.9,3105.1,0.002]
[1767875031140,3.78787895,3105.9,3105.1,0.002]
[1767875031461,0.56715576,3105.8,3105.1,0.002]
[1767875031665,0.56715576,3105.6,3105.1,0.002]
[1767875032672,3.22072319,3105.9,3105.1,0.93814661]
[1767875032673,0.001,3105.9,3105.1,0.93814661]
[1767875032836,3.22070714,3105.9,3105.1,0.93814661]
[1767875033038,0.001,3105.9,3105.1,0.93814661]
[1767875034875,0.56815576,3105.9,3105.1,0.002]
[1767875035191,3.7869381,3105.8,3105.1,0.002]
[1767875035382,0.56715576,3105.6,3105.1,0.002]
[1767875037067,3.78720784,3105.6,3105.1,0.002]
[1767875038270,0.70077056,3105.7,3105.1,0.002]
[1767875038443,0.845,3105.8,3105.1,0.93814661]
[1767875038643,4.06480308,3105.8,3105.1,0.93814661]
[1767875039251,7.28460616,3105.8,3105.1,0.93814661]
[1767875039550,0.56715576,3105.7,3105.1,0.002]
[1767875040474,0.001,3105.9,3105.1,0.002]
[1767875040475,0.001,3105.9,3105.2,0.93614661]
[1767875040661,0.001,3107.1,3105.4,3.56422636]
[1767875040662,0.56715576,3106.6,3105.4,3.56422636]
[1767875040859,0.56715576,3106.5,3105.5,0.35642264]
[1767875041064,0.56715576,3106.5,3104.3,0.46257701]
[1767875041257,0.53295172,3105.0,3104.2,0.002]
[1767875041459,4.59856785,3105.0,3104.2,0.002]
[1767875041663,3.22046517,3105.2,3104.2,0.93814661]
[1767875041858,1.22014169,3105.1,3104.2,0.93814661]
[1767875042278,1.22014169,3105.1,3105.0,0.002]
[1767875042486,1.22014169,3105.1,3104.2,0.93814661]
[1767875042646,0.37514169,3105.1,3104.2,0.93814661]
[1767875042847,0.845,3105.0,3104.2,0.93814661]
[1767875043047,0.37514169,3105.1,3104.2,0.93814661]
[1767875043261,3.22071564,3104.9,3104.2,0.93814661]
[1767875043983,4.747259,3105.0,3104.2,0.93814661]
[1767875044854,0.845,3105.3,3104.3,0.96333193]
[1767875045184,9.65810313,3106.2,3104.5,0.96333193]
[1767875045185,0.03220404,3106.0,3104.5,0.96333193]
[1767875045483,3.21978234,3105.8,3104.7,0.96333193]
[1767875045651,0.03220404,3105.7,3104.7,0.96333193]
[1767875047677,3.21998969,3105.6,3104.7,0.96333193]
[1767875047982,0.6794156,3105.5,3104.4,4.18453305]
[1767875048163,0.845,3105.4,3104.4,4.18453305]
[1767875048366,0.03220404,3105.3,3104.5,3.22110555]
[1767875048866,0.03220404,3105.3,3104.5,4.18443748]
[1767875049063,0.03220404,3105.3,3104.5,0.96333193]
[1767875049374,0.03220404,3105.3,3104.3,3.22126682]
[1767875049682,3.22040448,3105.2,3104.3,0.96333193]
[1767875049887,0.35746489,3105.1,3104.3,0.96333193]
[1767875051894,0.35746489,3105.1,3104.3,4.18463158]
[1767875052094,0.35746489,3105.1,3104.4,0.96333193]
[1767875052872,0.03220404,3105.1,3104.4,0.96333193]
[1767875053192,0.03220404,3105.5,3104.4,0.96333193]
[1767875053496,3.21968618,3105.9,3104.4,0.99554427]
[1767875053665,0.845,3105.6,3104.4,0.99554427]
[1767875053865,0.845,3105.6,3104.7,3.22092311]
[1767875054066,0.87720404,3105.6,3104.8,0.96333193]
[1767875054296,0.001,3105.4,3104.8,0.96333193]
[1767875055495,0.53095172,3106.6,3105.4,0.96333193]
[1767875055670,1.40815576,3106.5,3105.4,0.96333193]
[1767875056070,6.43832088,3106.4,3105.4,0.96333193]
[1767875056271,0.8168517,3106.3,3105.4,0.96333193]
[1767875057395,0.8168517,3106.3,3105.5,0.96333193]
[1767875057589,0.03220404,3106.2,3105.5,0.96333193]
[1767875057770,0.03220404,3106.5,3105.5,0.96333193]
[1767875058281,0.03220404,3106.5,3105.7,0.96333193]
[1767875058479,3.25121755,3106.6,3105.7,0.96333193]
[1767875060981,7.00118278,3106.6,3105.7,0.96333193]
[1767875061181,0.78461828,3106.5,3105.6,0.96333193]
[1767875061387,0.03220404,3106.4,3105.6,0.96333193]
[1767875061905,0.03220404,3106.4,3105.6,4.18325879]
[1767875062490,0.03220404,3106.4,3105.6,0.96333193]
[1767875062814,0.03220404,3106.4,3105.6,4.18328928]
[1767875063129,6.96947986,3106.3,3105.2,0.96333193]
[1767875063309,0.53095172,3106.1,3104.6,0.96533193]
[1767875063508,0.53095172,3105.9,3104.6,0.96533193]
[1767875063720,0.53095172,3105.7,3104.6,0.96533193]
[1767875063903,0.87720404,3105.6,3104.6,0.96533193]
[1767875064292,0.03220404,3105.6,3104.6,0.96533193]
[1767875064515,0.845,3105.5,3104.6,4.18630145]
[1767875064702,0.03220404,3105.6,3104.7,0.96333193]
[1767875064907,0.845,3105.8,3104.7,0.96333193]
[1767875065106,0.03220404,3105.7,3104.7,0.96333193]
[1767875065332,0.845,3105.9,3104.7,0.96333193]
[1767875065504,0.03220404,3105.8,3104.7,0.96333193]
[1767875065699,0.03220404,3105.8,3104.8,0.96333193]
[1767875066124,3.25204817,3105.8,3104.9,0.96333193]
[1767875066440,0.53095172,3105.7,3104.6,0.96533193]
[1767875066640,0.03220404,3105.6,3104.6,0.96533193]
[1767875066814,0.03220404,3105.6,3104.6,4.18634331]
[1767875067208,0.03220404,3105.6,3104.6,0.96533193]
[1767875067408,0.03220404,3105.6,3104.8,4.18410272]
[1767875067409,1.17020482,3105.6,3104.8,4.18410272]
[1767875067711,0.32520482,3105.6,3104.8,4.18410272]
[1767875068037,0.32520482,3105.6,3104.9,0.96333193]
[1767875068741,3.54520303,3105.6,3104.9,0.96333193]
[1767875068914,0.32520482,3105.6,3104.9,0.96333193]
[1767875069417,0.845,3105.7,3104.9,0.96333193]
[1767875069750,0.87720404,3105.7,3104.9,0.96333193]
[1767875070649,4.09712269,3105.7,3104.9,0.96333193]
[1767875071019,7.31704134,3105.7,3104.6,4.18634747]
[1767875071220,7.2848373,3105.7,3104.6,0.96533193]
[1767875071439,0.81378294,3105.6,3104.7,0.96333193]
[1767875072352,4.03387489,3105.6,3104.7,0.96333193]
[1767875073463,4.03387489,3105.6,3104.8,0.91556942]
[1767875073642,7.25396684,3105.6,3104.8,0.91556942]
[1767875073845,4.00167085,3105.6,3104.8,0.91556942]
[1767875074142,0.80665644,3105.5,3104.8,0.91556942]
[1767875074343,0.03220404,3105.4,3104.8,0.91556942]
[1767875077361,3.25219373,3105.6,3104.8,0.91556942]
[1767875078266,0.03220404,3105.6,3104.8,0.91556942]
[1767875078468,0.87720404,3105.8,3105.0,0.91556942]
[1767875078764,3.5739653,3105.8,3105.2,0.91556942]
[1767875079171,3.5739653,3105.8,3105.1,0.002]
[1767875079172,7.3247069,3105.8,3105.1,0.002]
[1767875079466,3.54176126,3105.8,3105.1,0.91756942]
[1767875079666,0.845,3105.7,3105.1,0.91756942]
[1767875079866,0.03220404,3105.8,3105.1,0.91756942]
[1767875080068,0.845,3105.9,3105.1,0.91756942]
[1767875080771,0.845,3105.9,3105.2,0.91556942]
[1767875082580,0.03220404,3105.8,3105.2,0.91556942]
[1767875082766,0.03220404,3105.8,3105.2,4.13595289]
[1767875082970,0.03220404,3105.8,3105.3,0.91556942]
[1767875083484,0.845,3105.9,3105.3,0.91556942]
[1767875084285,0.87720404,3105.9,3105.3,0.91556942]
[1767875084456,0.845,3105.9,3105.3,0.91556942]
[1767875084991,0.845,3105.9,3105.4,0.91556942]
[1767875085175,0.001,3106.1,3105.4,0.91556942]
[1767875085868,0.03320404,3106.1,3105.4,0.91556942]
[1767875086065,0.001,3106.1,3105.4,0.91556942]
[1767875086371,0.03320404,3106.1,3105.4,0.91556942]
[1767875087793,0.03320404,3106.1,3105.4,4.13576436]
[1767875088095,0.03320404,3106.1,3105.5,0.91556942]
[1767875088266,0.001,3106.1,3105.5,0.91556942]
[1767875088485,0.03320404,3106.1,3105.5,0.91556942]
[1767875088987,0.001,3106.1,3105.6,0.91556942]
[1767875089384,0.001,3106.1,3105.6,4.13546105]
[1767875089586,0.001,3106.1,3105.7,0.91556942]
[1767875090777,0.03220404,3106.6,3106.0,0.91556942]
[1767875091001,3.25105362,3106.7,3106.0,0.91556942]
[1767875091307,0.03220404,3106.7,3106.0,0.91556942]
[1767875091780,0.03220404,3106.8,3106.1,0.91556942]
[1767875091980,0.001,3107.1,3106.2,0.91556942]
[1767875092882,0.03320404,3107.1,3106.2,0.91556942]
[1767875093073,3.25165629,3107.1,3106.2,0.91556942]
[1767875093479,3.25165629,3107.1,3106.2,4.13490763]
[1767875093701,3.25165629,3107.1,3106.3,0.91556942]
[1767875094216,0.001,3107.1,3106.3,0.91556942]
[1767875094581,0.001,3107.1,3106.4,0.91556942]
[1767875094981,3.25167244,3107.1,3106.4,0.91556942]
[1767875095202,6.47014084,3107.1,3106.4,0.91556942]
[1767875095412,3.2194684,3107.1,3106.4,0.91556942]
[1767875095709,3.25167244,3107.1,3106.4,0.91556942]
[1767875097505,0.03320404,3107.1,3106.4,0.91556942]
[1767875097704,3.25167302,3107.1,3106.4,0.91556942]
[1767875098383,0.03320404,3107.1,3106.4,0.91556942]
[1767875098600,3.21944425,3107.1,3106.4,0.91556942]
[1767875098820,0.03220404,3107.0,3106.4,0.91556942]
[1767875099029,0.03320404,3107.1,3106.4,1.32905596]
[1767875099631,3.25165743,3107.1,3106.4,1.32905596]
[1767875099819,7.00106254,3107.1,3106.4,0.91556942]
[1767875100020,0.53095172,3107.0,3106.1,0.91556942]
[1767875100218,0.56315576,3106.9,3106.1,0.91556942]
[1767875100422,0.53095172,3106.8,3105.4,0.91556942]
[1767875100621,0.53095172,3106.6,3105.4,0.91556942]
[1767875100784,0.53095172,3106.4,3105.4,0.91556942]
[1767875100985,0.53095172,3106.3,3105.4,0.91556942]
[1767875101591,0.53095172,3106.3,3105.1,0.002]
[1767875101837,0.53095172,3106.1,3105.1,0.002]
[1767875101999,1.54985721,3106.0,3105.1,0.002]
[1767875102328,0.845,3105.9,3105.1,0.002]
[1767875102493,0.53095172,3105.8,3105.1,0.002]
[1767875102684,0.53095172,3105.8,3104.8,0.002]
[1767875103140,0.52895172,3105.6,3104.8,0.002]
[1767875103975,0.52895172,3105.4,3104.8,0.002]
[1767875104184,0.52895172,3105.2,3104.3,0.002]
[1767875104399,0.52895172,3105.0,3103.9,0.002]
[1767875105281,0.52895172,3105.0,3103.9,0.97263349]
[1767875106177,6.44143128,3104.9,3103.9,0.97263349]
[1767875106368,0.6970383,3104.8,3103.9,0.97263349]
[1767875108081,3.22092311,3104.7,3103.9,0.97263349]
[1767875109274,3.91790629,3104.8,3103.9,0.97263349]
[1767875109559,0.6970383,3104.8,3104.0,1.00284998]
[1767875109774,0.52895172,3105.3,3104.0,1.00284998]
[1767875109980,4.06540448,3105.2,3104.2,0.97063349]
[1767875110369,4.09760852,3105.2,3104.2,0.97063349]
[1767875111065,7.318013,3105.2,3104.2,0.97063349]
[1767875111258,7.28580896,3105.2,3104.2,0.97063349]
[1767875111458,0.81368011,3105.1,3104.2,0.97063349]
[1767875111869,0.52895172,3105.0,3103.9,4.19431799]
[1767875112169,1.65868011,3105.1,3104.3,0.97063349]
[1767875112363,0.87720404,3105.1,3104.3,0.97063349]
[1767875112684,4.09771597,3105.1,3104.3,0.97063349]
[1767875113278,0.03220404,3105.1,3104.3,0.97063349]
[1767875113479,3.2527776,3105.1,3104.3,0.97063349]
[1767875115063,0.001,3104.9,3104.3,0.97063349]
[1767875115683,0.001,3104.9,3104.4,0.97063349]
[1767875116415,0.52895172,3105.9,3104.9,0.97063349]
[1767875116712,0.03220404,3105.8,3104.9,0.97063349]
[1767875116859,0.87720404,3105.8,3104.9,0.97063349]
[1767875117065,4.09699303,3105.8,3104.9,0.97063349]
[1767875117362,7.31678202,3105.8,3104.9,0.97063349]
[1767875117557,1.31352509,3105.7,3104.9,0.97063349]
[1767875117796,0.56115576,3105.6,3104.5,0.97063349]
[1767875119393,3.78119398,3105.6,3104.7,0.97063349]
[1767875120599,0.03220404,3105.6,3104.7,0.97063349]
[1767875121593,0.03220404,3105.6,3104.9,0.97063349]
[1767875121594,3.25221208,3105.6,3104.9,0.97063349]
[1767875122382,0.03220404,3105.6,3104.9,0.97063349]
[1767875122682,0.03220404,3105.6,3105.0,0.97063349]
[1767875123302,0.03220404,3105.7,3105.0,0.97063349]
[1767875123479,4.06475742,3105.9,3105.1,0.97063349]
[1767875123922,0.52895172,3105.7,3104.6,0.97063349]
[1767875124222,0.52895172,3105.5,3104.6,0.97063349]
[1767875124522,0.03220404,3105.4,3104.7,0.97063349]
[1767875125097,0.56115576,3105.8,3104.8,0.97063349]
[1767875125300,0.845,3105.7,3104.8,0.97063349]
[1767875126009,3.21998969,3105.6,3104.8,0.97063349]
[1767875126184,0.03220404,3105.5,3104.8,0.97063349]
[1767875126385,0.03220404,3105.5,3104.8,1.35496746]
[1767875126598,0.03220404,3105.5,3104.5,0.97063349]
[1767875126800,0.001,3105.3,3104.6,0.97063349]
[1767875127016,0.001,3105.3,3104.7,0.97063349]
[1767875129222,0.001,3105.3,3104.5,0.97063349]
[1767875129535,0.56215576,3105.3,3104.5,0.97063349]
[1767875129746,1.26239972,3105.3,3104.5,0.97063349]
[1767875130095,4.48276696,3105.3,3104.5,0.97063349]
[1767875131925,7.7031342,3105.3,3104.5,0.97063349]
[1767875132221,0.00993789,3104.9,3104.5,0.97063349]
[1767875134825,0.00993789,3104.9,3104.6,0.97056502]
[1767875142298,0.00993789,3104.9,3104.7,0.97056502]
[1767875146119,0.00993789,3104.9,3104.5,0.002]
[1767875146518,0.00993789,3104.9,3104.5,0.97256502]
[1767875149937,0.00993789,3104.9,3104.6,0.97056502]
[1767875150743,0.00993789,3104.9,3104.8,0.002]
[1767875152259,0.00993789,3104.9,3104.8,0.97256502]
[1767875159054,0.00993789,3104.9,3104.8,1.39191266]
[1767875160674,0.00993789,3104.9,3104.8,0.97256502]
[1767875161788,0.001,3105.3,3104.9,0.97056502]
[1767875162093,0.001,3105.3,3105.1,0.97056502]
[1767875162978,0.52895172,3106.2,3105.3,0.97534505]
[1767875163179,0.52895172,3106.2,3105.5,0.97534505]
[1767875163549,0.52895172,3106.2,3105.6,0.92342931]
[1767875163884,0.52895172,3106.4,3105.6,0.92342931]
[1767875164081,0.03220404,3106.3,3105.6,0.92342931]
[1767875164750,3.74802884,3106.5,3105.6,0.92342931]
[1767875164951,4.52921932,3106.5,3105.6,0.92342931]
[1767875165350,1.3101422,3106.5,3105.7,0.92342931]
[1767875165552,0.52895172,3106.7,3105.8,0.92342931]
[1767875165780,3.21978041,3106.8,3105.8,0.92342931]
[1767875165978,0.03220404,3106.7,3105.8,0.92342931]
[1767875167554,3.25111326,3106.7,3105.8,0.92342931]
[1767875168282,3.25111326,3106.7,3105.9,0.92342931]
[1767875168484,0.32521133,3106.6,3105.9,0.92342931]
[1767875168780,0.03220404,3106.5,3105.9,0.92342931]
[1767875170085,0.32521133,3106.6,3105.9,0.92342931]
[1767875171674,0.03220404,3106.5,3105.9,0.92342931]
[1767875173592,0.32521133,3106.6,3106.0,0.92342931]
[1767875173793,0.03220404,3106.5,3106.0,0.92342931]
[1767875173961,0.001,3106.4,3106.0,0.92342931]
[1767875178690,0.001,3106.4,3106.1,0.92342931]
[1767875179791,0.001,3106.4,3106.1,3.83187194]
[1767875179960,0.001,3106.8,3106.4,0.92342931]
[1767875180489,0.001,3106.8,3106.3,3.21921873]
[1767875180490,0.001,3106.8,3106.6,0.92342931]
[1767875184875,0.001,3106.8,3106.3,0.92342931]
[1767875185392,0.001,3106.8,3106.4,0.92342931]
[1767875186286,0.001,3106.5,3106.4,0.92342931]
[1767875186488,0.001,3106.8,3106.5,0.92342931]
[1767875194573,0.52995172,3106.8,3105.9,0.96536822]
[1767875194775,0.52895172,3106.6,3105.9,0.96536822]
[1767875196106,0.56115576,3106.6,3105.9,0.96536822]
[1767875197614,0.56115576,3106.6,3106.0,0.96536822]
[1767875197819,0.52995172,3106.8,3106.0,0.96536822]
[1767875198018,3.74870245,3106.8,3106.0,0.96536822]
[1767875199011,0.001,3106.5,3106.2,0.96736822]
[1767875201487,0.001,3106.5,3106.2,0.002]
[1767875202020,0.001,3106.5,3106.2,0.96736822]
[1767875205711,0.001,3106.5,3106.3,0.96536822]
[1767875205915,0.001,3106.8,3106.5,0.96536822]
[1767875211426,0.52895172,3107.3,3106.5,3.21904427]
[1767875211610,0.03113248,3107.2,3106.5,3.21904427]
[1767875211803,0.52895172,3107.1,3106.5,3.21904427]
[1767875212025,0.52895172,3107.1,3106.6,0.38481222]
[1767875212529,0.52895172,3107.1,3106.6,3.60371712]
[1767875212725,0.5600842,3107.4,3106.7,0.96536822]
[1767875212928,0.03113248,3107.4,3106.7,0.96536822]
[1767875213128,0.03213248,3107.7,3106.7,0.96536822]
[1767875213304,0.03213248,3107.7,3106.9,0.96536822]
[1767875214926,0.03213248,3107.7,3107.0,0.96536822]
[1767875215432,0.52895172,3107.6,3106.9,3.21855011]
[1767875215732,0.52895172,3107.5,3106.9,3.21855011]
[1767875216306,0.03213248,3107.7,3107.0,0.96536822]
[1767875216503,0.03213248,3107.7,3107.2,0.96536822]
[1767875216708,0.03213248,3107.7,3107.1,0.38481222]
[1767875216709,0.5610842,3107.7,3107.1,0.38481222]
[1767875217802,0.47296454,3108.2,3107.2,0.96536822]
[1767875218702,0.845,3108.3,3107.2,0.96536822]
[1767875219205,0.47296454,3108.2,3107.4,0.96536822]
[1767875219639,0.03113248,3108.1,3107.4,0.96536822]
[1767875219814,0.50409702,3108.1,3107.4,0.41835963]
[1767875220222,0.50409702,3108.1,3107.1,4.18374977]
[1767875220609,0.50409702,3108.1,3106.9,0.96536822]
[1767875220842,0.50409702,3108.1,3106.9,4.06263166]
[1767875221054,0.50409702,3108.1,3106.9,3.21859127]
[1767875221642,0.47296454,3107.9,3106.9,3.21859127]
[1767875221835,0.47296454,3107.7,3107.0,0.96536822]
[1767875222041,0.03113248,3107.8,3107.0,0.96536822]
[1767875222563,0.50409702,3107.8,3106.5,0.99398121]
[1767875222858,0.50409702,3107.8,3106.2,0.002]
[1767875222859,0.47296454,3107.6,3106.2,0.002]
[1767875223010,0.47296454,3107.4,3106.2,0.002]
[1767875223206,0.47296454,3107.2,3106.2,0.002]
[1767875223432,19.48151605,3108.0,3106.2,0.002]